bitfinex/quotes_SOLUSD_20250821
["timestamp","ask_amount","ask_price","bid_price","bid_amount"]
[1755779419007,0.71,184.52,184.44,26.0]
[1755779419619,0.71,184.52,184.44,26.67]
[1755779419838,0.06,184.51,184.45,0.67]
[1755779420341,0.06,184.51,184.48,26.0]
[1755779420505,0.06,184.51,184.45,0.67]
[1755779421110,0.06,184.51,184.49,26.0]
[1755779421414,0.06,184.53,184.5,26.67]
[1755779421641,0.06,184.53,184.5,0.67]
[1755779421807,0.06,184.53,184.51,0.67]
[1755779422209,0.71,184.64,184.52,26.0]
[1755779422433,0.71,184.64,184.53,1.2119173]
[1755779422639,0.71,184.64,184.54,0.67]
[1755779422858,39.59559401,184.69,184.54,0.67]
[1755779423026,0.71,184.69,184.57,26.0]
[1755779423672,0.71,184.69,184.58,0.67]
[1755779424122,39.12,184.72,184.58,0.67]
[1755779424323,0.71,184.71,184.52,15.32774951]
[1755779424550,0.71,184.71,184.55,26.0]
[1755779424551,13.59559401,184.7,184.55,26.0]
[1755779424767,0.71,184.69,184.55,26.0]
[1755779424922,13.59559401,184.68,184.5,2.171848]
[1755779425127,13.59559401,184.66,184.5,2.171848]
[1755779425354,26.0,184.63,184.5,2.171848]
[1755779425558,13.59559401,184.61,184.5,2.171848]
[1755779425758,0.71,184.6,184.5,2.171848]
[1755779425924,0.71,184.6,184.5,2.841848]
[1755779426120,26.0,184.69,184.51,0.67]
[1755779426369,0.71,184.62,184.51,26.67]
[1755779426859,0.71,184.62,184.52,0.67]
[1755779427168,0.71,184.65,184.53,26.0]
[1755779427439,0.71,184.65,184.55,26.0]
[1755779428219,39.12,184.72,184.55,26.0]
[1755779428220,0.71,184.68,184.59,26.0]
[1755779428522,0.71,184.68,184.6,0.67]
[1755779428707,0.71,184.71,184.61,26.0]
[1755779429014,0.71,184.71,184.62,0.67]
[1755779429393,0.71,184.74,184.62,0.67]
[1755779430292,0.71,184.74,184.66,26.0]
[1755779430614,0.71,184.74,184.66,26.67]
[1755779431139,43.56,184.81,184.67,0.67]
[1755779431297,0.71,184.79,184.67,0.67]
[1755779432322,0.71,184.79,184.7,26.0]
[1755779432634,0.71,184.79,184.69,26.67]
[1755779432941,0.71,184.79,184.7,0.67]
[1755779433295,43.56,184.81,184.7,0.67]
[1755779433507,0.71,184.8,184.7,0.67]
[1755779434324,0.71,184.8,184.74,26.0]
[1755779434537,0.71,184.79,184.74,26.0]
[1755779434745,0.71,184.79,184.71,42.270304]
[1755779434914,13.59559401,184.78,184.71,16.270304]
[1755779435234,13.59559401,184.76,184.68,26.0]
[1755779435408,13.59559401,184.74,184.69,13.595594]
[1755779435597,0.71,184.73,184.63,0.67]
[1755779435797,0.71,184.73,184.61,0.67]
[1755779436002,13.59559401,184.72,184.58,0.67]
[1755779436230,13.59559401,184.7,184.58,0.67]
[1755779436399,13.59559401,184.7,184.58,13.595594]
[1755779436602,0.71,184.69,184.58,13.595594]
[1755779436831,0.71,184.69,184.61,26.0]
[1755779437132,0.71,184.69,184.61,26.67]
[1755779437421,0.71,184.69,184.61,26.0]
[1755779438605,0.71,184.69,184.58,57.415594]
[1755779438805,0.71,184.69,184.61,26.0]
[1755779439023,13.59559401,184.68,184.58,13.595594]
[1755779439326,39.59559401,184.66,184.53,0.67]
[1755779439544,13.59559401,184.62,184.53,16.288856]
[1755779439699,13.59559401,184.62,184.51,0.03]
[1755779439894,0.71,184.61,184.51,0.03]
[1755779440425,0.71,184.61,184.53,0.03]
[1755779440622,13.59559401,184.6,184.53,0.03]
[1755779440801,13.59559401,184.58,184.53,0.03]
[1755779441227,13.59559401,184.56,184.53,0.03]
[1755779441428,0.71,184.55,184.53,0.03]
[1755779441932,0.71,184.54,184.53,0.03]
[1755779442235,14.30559401,184.54,184.53,0.03]
[1755779442527,14.30559401,184.54,184.51,0.03]
[1755779442528,0.71,184.54,184.51,0.03]
[1755779442727,0.71,184.53,184.51,0.03]
[1755779443121,14.30559401,184.52,184.51,0.03]
[1755779443934,13.59559401,184.52,184.51,0.03]
[1755779444246,0.71,184.52,184.51,0.03]
[1755779447612,0.71,184.56,184.51,0.03]
[1755779447938,13.59559401,184.55,184.51,0.03]
[1755779448310,14.30559401,184.59,184.51,0.68]
[1755779448536,14.30559401,184.59,184.51,0.03]
[1755779449313,0.06,184.57,184.51,0.03]
[1755779449520,0.06,184.57,184.52,0.65]
[1755779449722,0.06,184.57,184.53,1.1919173]
[1755779449927,0.06,184.57,184.54,0.65]
[1755779450325,0.06,184.57,184.55,0.65]
[1755779450722,0.06,184.57,184.52,28.171965]
[1755779451053,0.77,184.57,184.52,2.171965]
[1755779451865,0.06,184.57,184.53,30.63296973]
[1755779452141,0.06,184.57,184.54,4.63296973]
[1755779452368,0.06,184.57,184.55,3.98296973]
[1755779452548,0.06,184.57,184.56,3.98534113]
[1755779453253,0.06,184.57,184.56,4.63534113]
[1755779453432,0.06,184.57,184.56,3.98534113]
[1755779453823,0.06,184.57,184.52,2.171965]
[1755779454039,0.06,184.57,184.55,26.0]
[1755779454243,0.06,184.57,184.56,3.98510137]
[1755779454439,0.06,184.57,184.56,3.98751616]
[1755779454953,0.06,184.57,184.56,4.63751616]
[1755779455451,0.06,184.57,184.56,30.63751616]
[1755779455629,0.06,184.57,184.56,4.63751616]
[1755779455831,0.06,184.57,184.56,30.63751616]
[1755779456473,0.06,184.57,184.56,49.65140232]
[1755779456828,0.06,184.59,184.57,13.59559401]
[1755779457132,0.06,184.59,184.58,62.44488067]
[1755779457324,0.06,184.59,184.58,77.05617233]
[1755779457934,3.58752903,184.68,184.61,26.0]
[1755779457935,7.69064583,184.68,184.61,26.0]
[1755779458131,0.71,184.68,184.63,32.98064583]
[1755779458337,0.71,184.67,184.64,3.98751616]
[1755779458636,3.58752903,184.68,184.66,6.98064583]
[1755779458848,3.58752903,184.69,184.64,0.65]
[1755779459048,3.58752903,184.68,184.65,10.97286845]
[1755779459233,0.71,184.71,184.66,10.97286845]
[1755779459560,4.31763126,184.7,184.66,6.98064583]
[1755779459732,3.60763126,184.69,184.67,6.98064583]
[1755779460056,12.2549606,184.73,184.68,10.97431191]
[1755779460057,3.60728915,184.72,184.68,10.97431191]
[1755779460354,4.31694379,184.71,184.69,29.99366608]
[1755779460551,4.70911144,184.76,184.7,3.99366608]
[1755779460760,0.71,184.71,184.67,32.98064583]
[1755779460947,0.71,184.71,184.68,3.99524078]
[1755779461259,4.3214066,184.7,184.69,3.99524078]
[1755779461456,3.6114066,184.7,184.69,3.99524078]
[1755779461760,3.6114066,184.73,184.69,10.97588661]
[1755779461941,3.6114066,184.72,184.7,3.99524078]
[1755779462141,7.69064583,184.75,184.68,32.98064583]
[1755779462356,3.61024831,184.74,184.69,3.99665548]
[1755779462644,3.61024831,184.75,184.71,6.98064583]
[1755779462835,3.81024831,184.76,184.72,4.64665548]
[1755779463037,3.81024831,184.76,184.74,6.98064583]
[1755779463038,0.2,184.76,184.74,6.98064583]
[1755779463243,0.2,184.76,184.72,26.0]
[1755779463244,0.2,184.76,184.75,30.64665548]
[1755779463462,0.2,184.76,184.75,36.97730131]
[1755779463824,0.91,184.76,184.75,3.99665548]
[1755779464030,0.91,184.76,184.74,3.99665548]
[1755779464362,0.2,184.76,184.72,26.0]
[1755779464537,6.98064583,184.74,184.69,51.66064583]
[1755779464739,0.71,184.73,184.69,70.68]
[1755779464945,0.71,184.73,184.69,77.66064583]
[1755779465142,0.71,184.73,184.69,70.68]
[1755779465341,0.71,184.73,184.69,77.66064583]
[1755779465546,0.71,184.73,184.69,70.68]
[1755779465736,0.06,184.74,184.69,70.68]
[1755779465937,0.06,184.74,184.72,32.98064583]
[1755779466455,0.06,184.74,184.72,26.0]
[1755779467365,0.77,184.74,184.72,26.0]
[1755779467731,0.06,184.74,184.72,26.0]
[1755779468267,0.71,184.73,184.69,44.68]
[1755779468441,0.06,184.74,184.69,51.66064583]
[1755779468761,7.69064583,184.73,184.67,0.65]
[1755779468944,0.71,184.73,184.68,44.7]
[1755779469140,7.69064583,184.73,184.68,51.68064583]
[1755779469945,7.69064583,184.72,184.66,26.0]
[1755779470163,6.98064583,184.72,184.67,70.7]
[1755779470462,0.06,184.74,184.71,6.98064583]
[1755779470764,0.06,184.74,184.7,32.98064583]
[1755779470930,0.06,184.74,184.71,6.98064583]
[1755779471131,0.06,184.74,184.73,6.98064583]
[1755779471560,0.06,184.74,184.72,44.7]
[1755779472348,0.06,184.74,184.73,7.63064583]
[1755779472543,0.06,184.74,184.73,0.65]
[1755779472762,0.06,184.74,184.73,7.63064583]
[1755779473461,0.06,184.74,184.73,51.66064583]
[1755779473957,0.06,184.74,184.73,44.68]
[1755779474256,0.06,184.74,184.72,26.0]
[1755779474257,0.06,184.74,184.71,44.66]
[1755779474460,0.77,184.74,184.71,44.66]
[1755779474836,0.06,184.74,184.71,44.66]
[1755779475160,0.71,184.73,184.67,6.98064583]
[1755779475367,6.98064583,184.71,184.66,6.98064583]
[1755779475549,6.98064583,184.71,184.68,44.66]
[1755779475863,6.98064583,184.72,184.68,44.66]
[1755779476068,0.06,184.74,184.71,32.98064583]
[1755779476364,0.06,184.74,184.72,51.62064583]
[1755779476578,0.06,184.74,184.73,6.98064583]
[1755779476778,0.06,184.74,184.72,45.33]
[1755779476940,0.06,184.74,184.73,7.67064583]
[1755779477675,0.06,184.74,184.73,0.69]
[1755779477971,0.06,184.74,184.73,7.67064583]
[1755779478354,0.06,184.74,184.73,6.98064583]
[1755779478545,0.06,184.74,184.73,51.60064583]
[1755779479662,0.06,184.74,184.73,52.29064583]
[1755779480552,0.06,184.74,184.73,51.60064583]
[1755779481060,0.75,184.74,184.71,26.0]
[1755779481269,0.06,184.74,184.72,44.58]
[1755779481433,0.06,184.74,184.73,6.98064583]
[1755779482446,0.06,184.74,184.72,44.58]
[1755779482645,0.06,184.74,184.73,0.69]
[1755779482890,0.06,184.74,184.72,44.58]
[1755779483879,0.06,184.74,184.73,6.98064583]
[1755779484076,0.06,184.74,184.72,44.58]
[1755779484274,0.69,184.73,184.72,26.0]
[1755779484599,0.06,184.74,184.72,70.48]
[1755779485714,0.06,184.74,184.72,71.17]
[1755779485882,0.06,184.74,184.73,6.98064583]
[1755779486194,0.75,184.74,184.73,44.48]
[1755779486367,0.75,184.74,184.72,70.48]
[1755779486570,0.69,184.73,184.72,70.48]
[1755779486785,0.06,184.74,184.72,70.48]
[1755779486985,0.06,184.74,184.72,77.46064583]
[1755779487688,0.06,184.74,184.72,70.48]
[1755779488072,0.75,184.74,184.72,70.48]
[1755779488277,0.06,184.74,184.73,6.98064583]
[1755779488663,0.06,184.74,184.72,77.46064583]
[1755779489065,0.06,184.74,184.73,6.98064583]
[1755779489482,0.06,184.74,184.72,70.48]
[1755779489796,0.75,184.74,184.73,44.44]
[1755779490481,0.75,184.74,184.73,44.4]
[1755779491375,7.73064583,184.74,184.63,30.62559401]
[1755779491596,7.73064583,184.74,184.67,6.98064583]
[1755779491597,6.98064583,184.72,184.67,6.98064583]
[1755779491758,0.69,184.73,184.68,44.38]
[1755779491964,0.69,184.73,184.7,6.98064583]
[1755779492168,0.06,184.74,184.7,51.36064583]
[1755779492372,0.06,184.74,184.7,44.38]
[1755779492588,0.75,184.74,184.72,6.98064583]
[1755779492770,0.06,184.74,184.73,51.34064583]
[1755779493165,0.06,184.74,184.73,44.36]
[1755779493362,0.06,184.74,184.73,51.34064583]
[1755779493594,0.06,184.74,184.73,44.36]
[1755779493809,0.06,184.74,184.73,51.34064583]
[1755779494470,0.06,184.74,184.73,52.03064583]
[1755779494878,0.06,184.74,184.73,51.34064583]
[1755779495071,0.06,184.74,184.73,71.05]
[1755779495290,0.06,184.74,184.73,78.03064583]
[1755779495802,0.06,184.74,184.73,77.34064583]
[1755779495975,0.06,184.74,184.73,32.98064583]
[1755779496166,0.06,184.74,184.73,26.0]
[1755779496370,0.06,184.74,184.73,77.26064583]
[1755779496905,0.06,184.74,184.73,77.95064583]
[1755779497974,0.06,184.74,184.73,77.26064583]
[1755779498376,0.06,184.74,184.73,51.26064583]
[1755779498801,0.06,184.74,184.69,50.01064583]
[1755779499004,0.06,184.74,184.73,6.98064583]
[1755779499202,0.06,184.74,184.73,51.24064583]
[1755779499380,0.06,184.74,184.73,44.26]
[1755779499586,4.38602426,184.74,184.72,44.26]
[1755779499900,0.69,184.73,184.72,44.26]
[1755779500116,0.2,184.76,184.74,13.59559401]
[1755779500411,0.06,184.81,184.8,45.00684942]
[1755779500702,0.2,184.84,184.82,29.93559401]
[1755779500904,0.2,184.84,184.82,4.00912596]
[1755779501112,0.75,184.83,184.82,48.76912596]
[1755779501408,0.06,184.83,184.82,55.74977179]
[1755779501575,0.06,184.83,184.82,51.74064583]
[1755779501780,0.75,184.83,184.82,44.76]
[1755779501974,0.06,184.83,184.82,51.74064583]
[1755779502209,0.06,184.83,184.82,51.76064583]
[1755779503677,0.06,184.83,184.82,57.17131567]
[1755779504073,0.2,184.84,184.82,57.17131567]
[1755779504074,0.2,184.84,184.82,87.10690968]
[1755779504292,0.06,184.85,184.83,6.98064583]
[1755779504496,0.06,184.85,184.84,57.15073022]
[1755779504696,10.0,185.04,184.84,57.15073022]
[1755779504697,0.69,184.94,184.87,26.0]
[1755779504877,6.98064583,185.01,184.93,6.98064583]
[1755779505081,0.69,184.97,184.93,44.78]
[1755779505277,0.69,184.96,184.93,44.78]
[1755779505518,0.69,184.95,184.93,44.78]
[1755779505721,0.69,184.94,184.91,26.0]
[1755779505882,0.69,184.93,184.92,26.0]
[1755779506081,0.69,184.93,184.92,70.74]
[1755779506513,0.69,184.93,184.91,6.98064583]
[1755779506703,26.0,185.01,184.92,6.98064583]
[1755779506893,13.59559401,184.97,184.93,6.98064583]
[1755779507213,0.68,185.0,184.94,6.98064583]
[1755779507214,0.68,184.96,184.94,6.98064583]
[1755779507513,0.74,184.95,184.94,6.98064583]
[1755779508514,0.74,184.95,184.93,44.82]
[1755779508806,0.68,184.94,184.93,51.80064583]
[1755779509010,0.68,184.94,184.93,44.82]
[1755779509530,0.68,184.94,184.93,51.80064583]
[1755779509686,0.68,184.94,184.8,16.98064583]
[1755779509888,0.68,184.94,184.9,6.98064583]
[1755779510116,0.68,184.94,184.9,51.74064583]
[1755779510318,7.66064583,184.94,184.9,51.74064583]
[1755779510609,0.74,184.93,184.9,6.98064583]
[1755779510808,0.68,184.92,184.9,6.98064583]
[1755779511009,0.68,184.91,184.89,6.98064583]
[1755779511219,0.68,184.9,184.89,6.98064583]
[1755779511387,0.68,184.9,184.88,44.76]
[1755779511587,6.98064583,184.92,184.88,44.76]
[1755779511792,0.68,184.91,184.88,44.76]
[1755779512019,0.68,184.91,184.87,51.72064583]
[1755779512311,0.68,184.91,184.83,26.0]
[1755779512518,0.68,184.91,184.84,44.72]
[1755779512685,7.66064583,184.91,184.86,6.98064583]
[1755779512884,0.68,184.9,184.86,6.98064583]
[1755779513102,6.98064583,184.91,184.86,6.98064583]
[1755779513103,0.68,184.89,184.86,6.98064583]
[1755779513410,0.68,184.88,184.84,44.72]
[1755779513618,0.68,184.88,184.86,6.98064583]
[1755779513811,0.06,184.93,184.86,6.98064583]
[1755779513812,0.68,184.87,184.86,6.98064583]
[1755779513998,0.68,184.87,184.85,51.68064583]
[1755779514198,0.06,184.93,184.81,0.03]
[1755779514199,0.68,184.86,184.81,0.03]
[1755779514420,0.68,184.85,184.83,6.98064583]
[1755779514599,0.68,184.88,184.84,6.98064583]
[1755779514792,0.68,184.87,184.85,6.98064583]
[1755779514995,6.98064583,184.9,184.86,6.98064583]
[1755779514996,0.68,184.9,184.86,6.98064583]
[1755779515211,0.68,184.89,184.87,6.98064583]
[1755779515404,0.68,184.89,184.85,44.66]
[1755779515405,0.68,184.88,184.85,44.66]
[1755779515799,6.98064583,184.9,184.85,51.64064583]
[1755779516108,0.68,184.89,184.85,51.64064583]
[1755779516309,0.68,184.88,184.85,44.66]
[1755779516515,0.68,184.87,184.85,51.64064583]
[1755779516689,0.68,184.87,184.81,0.03]
[1755779516690,0.68,184.86,184.83,44.64]
[1755779517015,0.06,184.93,184.85,6.98064583]
[1755779517320,0.06,184.93,184.83,44.64]
[1755779517321,6.98064583,184.88,184.81,0.03]
[1755779517489,13.65559401,184.93,184.83,51.62064583]
[1755779517690,0.68,184.87,184.83,44.64]
[1755779517882,0.68,184.86,184.81,0.03]
[1755779518087,0.68,184.86,184.83,6.98064583]
[1755779518816,0.68,184.89,184.84,6.98064583]
[1755779519125,0.68,184.88,184.84,6.98064583]
[1755779519286,0.68,184.87,184.84,6.98064583]
[1755779519483,0.68,184.86,184.81,44.67]
[1755779519696,0.68,184.86,184.83,6.98064583]
[1755779520303,6.98064583,184.84,184.81,0.03]
[1755779520506,13.59559401,184.87,184.69,7.01064583]
[1755779520507,6.98064583,184.82,184.69,7.01064583]
[1755779520705,6.98064583,184.78,184.73,6.98064583]
[1755779520987,0.68,184.77,184.66,0.03]
[1755779521221,0.68,184.77,184.69,32.98064583]
[1755779521420,0.68,184.77,184.7,26.0]
[1755779521614,0.68,184.77,184.73,6.98064583]
[1755779522125,0.68,184.76,184.73,6.98064583]
[1755779522309,0.68,184.75,184.72,6.98064583]
[1755779522922,7.66064583,184.77,184.72,6.98064583]
[1755779523102,6.98064583,184.77,184.72,6.98064583]
[1755779523309,0.68,184.76,184.72,6.98064583]
[1755779523511,13.59559401,184.83,184.73,6.98064583]
[1755779523711,6.98064583,184.78,184.73,6.98064583]
[1755779523907,7.66064583,184.77,184.71,44.62]
[1755779524111,7.66064583,184.77,184.61,13.5418363]
[1755779524112,6.98064583,184.74,184.69,6.98064583]
[1755779524438,6.98064583,184.72,184.68,44.62]
[1755779524626,7.66064583,184.71,184.63,0.03]
[1755779524948,7.66064583,184.71,184.66,6.98064583]
[1755779525139,0.68,184.7,184.66,6.98064583]
[1755779525311,0.68,184.7,184.67,6.98064583]
[1755779525510,0.68,184.7,184.65,44.76]
[1755779525707,0.68,184.7,184.67,6.98064583]
[1755779526108,0.68,184.69,184.67,6.98064583]
[1755779526309,6.98064583,184.71,184.66,6.98064583]
[1755779526608,0.68,184.7,184.66,6.98064583]
[1755779526825,7.66064583,184.69,184.64,6.98064583]
[1755779527033,13.59559401,184.77,184.62,855.03]
[1755779527034,6.98064583,184.65,184.62,855.03]
[1755779527243,39.59559401,184.71,184.62,855.03]
[1755779527244,6.98064583,184.63,184.62,855.03]
[1755779527483,7.66064583,184.63,184.62,855.03]
[1755779527618,21.25623984,184.63,184.62,855.03]
[1755779527938,21.25623984,184.63,184.62,854.31]
[1755779529035,0.68,184.68,184.62,861.29064583]
[1755779529231,7.66064583,184.68,184.62,861.29064583]
[1755779529430,6.98064583,184.67,184.62,861.29064583]
[1755779529636,0.68,184.68,184.62,854.99]
[1755779529857,14.27559401,184.71,184.62,899.75]
[1755779530040,13.59559401,184.69,184.65,6.98064583]
[1755779530349,13.59559401,184.69,184.62,899.75]
[1755779530350,0.68,184.68,184.64,6.98064583]
[1755779530579,0.68,184.67,184.62,854.31]
[1755779530857,6.98064583,184.65,184.62,854.31]
[1755779531019,0.68,184.64,184.62,854.31]
[1755779531219,21.25623984,184.63,184.62,854.31]
[1755779531723,20.57623984,184.63,184.62,854.31]
[1755779531952,21.25623984,184.63,184.62,854.31]
[1755779534841,14.27559401,184.63,184.62,854.31]
[1755779535028,21.25623984,184.63,184.62,854.31]
[1755779535236,14.27559401,184.63,184.62,854.31]
[1755779535451,21.25623984,184.63,184.62,854.31]
[1755779536945,14.27559401,184.63,184.62,854.31]
[1755779537253,21.25623984,184.63,184.62,854.31]
[1755779543549,65.93623984,184.63,184.62,854.31]
[1755779544557,65.99623984,184.63,184.62,854.31]
[1755779545968,68.82299383,184.63,184.62,854.31]
[1755779547564,68.74299383,184.63,184.62,854.31]
[1755779547882,68.74299383,184.63,184.62,784.04731862]
[1755779548851,68.74299383,184.63,184.62,713.78463724]
[1755779549381,24.14299383,184.63,184.62,713.78463724]
[1755779549679,94.02299383,184.63,184.62,713.78463724]
[1755779550351,49.46299383,184.63,184.62,713.78463724]
[1755779550565,13.65559401,184.63,184.62,713.78463724]
[1755779550873,13.59559401,184.68,184.62,765.98528307]
[1755779551036,13.59559401,184.68,184.64,6.98064583]
[1755779551240,51.54064583,184.69,184.65,0.66]
[1755779551241,44.56,184.69,184.65,0.66]
[1755779551447,44.56,184.69,184.66,0.66]
[1755779551666,44.56,184.69,184.67,0.66]
[1755779551667,13.59559401,184.69,184.67,0.66]
[1755779551871,6.98064583,184.68,184.62,758.34463724]
[1755779552187,6.98064583,184.67,184.62,765.98528307]
[1755779552355,13.59559401,184.65,184.62,714.44463724]
[1755779552679,20.57623984,184.65,184.62,713.78463724]
[1755779552993,0.69,184.71,184.62,713.78463724]
[1755779553156,13.59559401,184.68,184.64,6.98064583]
[1755779553556,13.59559401,184.68,184.65,0.66]
[1755779553758,13.59559401,184.68,184.62,713.78463724]
[1755779553759,13.59559401,184.68,184.66,0.66]
[1755779553967,13.59559401,184.68,184.62,713.78463724]
[1755779553968,13.59559401,184.68,184.67,0.66]
[1755779554365,13.59559401,184.68,184.65,7.64064583]
[1755779554563,13.59559401,184.68,184.65,6.98064583]
[1755779555082,13.59559401,184.68,184.66,0.66]
[1755779556759,13.59559401,184.68,184.64,6.98064583]
[1755779557161,13.59559401,184.68,184.65,0.66]
[1755779557455,13.59559401,184.7,184.66,7.64064583]
[1755779557661,13.59559401,184.7,184.67,7.64064583]
[1755779557965,13.59559401,184.71,184.68,7.64064583]
[1755779558166,13.59559401,184.71,184.69,0.66]
[1755779558567,13.59559401,184.71,184.69,7.64064583]
[1755779559053,13.65559401,184.73,184.69,7.64064583]
[1755779559255,13.65559401,184.73,184.71,6.98064583]
[1755779559458,0.06,184.73,184.72,7.64064583]
[1755779559959,0.06,184.73,184.71,6.98064583]
[1755779560159,0.06,184.73,184.72,6.98064583]
[1755779560670,0.06,184.73,184.72,7.64064583]
[1755779561064,0.06,184.73,184.72,0.66]
[1755779561272,0.06,184.73,184.72,7.64064583]
[1755779561472,0.06,184.73,184.72,0.66]
[1755779561673,0.06,184.73,184.72,7.64064583]
[1755779561881,0.06,184.73,184.72,0.66]
[1755779562189,0.06,184.73,184.7,6.98064583]
[1755779562391,0.06,184.73,184.69,45.08]
[1755779562592,0.06,184.73,184.71,6.98064583]
[1755779562797,0.06,184.73,184.72,6.98064583]
[1755779562996,0.06,184.73,184.72,7.64064583]
[1755779564086,0.06,184.73,184.72,6.98064583]
[1755779564291,0.06,184.73,184.71,6.98064583]
[1755779565088,0.06,184.73,184.69,45.08]
[1755779565264,0.06,184.73,184.72,6.98064583]
[1755779567364,0.72,184.73,184.67,0.69]
[1755779567583,13.59559401,184.72,184.68,6.98064583]
[1755779568081,14.25559401,184.72,184.68,6.98064583]
[1755779568473,13.59559401,184.72,184.68,6.98064583]
[1755779568672,6.98064583,184.72,184.65,26.0]
[1755779568997,0.66,184.71,184.67,6.98064583]
[1755779569575,13.59559401,184.71,184.68,6.98064583]
[1755779569998,0.06,184.73,184.7,6.98064583]
[1755779570182,0.06,184.73,184.69,0.69]
[1755779570183,0.06,184.73,184.72,6.98064583]
[1755779570708,0.06,184.73,184.72,7.67064583]
[1755779571364,0.06,184.73,184.72,6.98064583]
[1755779571565,0.06,184.73,184.71,6.98064583]
[1755779572576,0.06,184.73,184.72,6.98064583]
[1755779572886,0.06,184.73,184.72,7.67064583]
[1755779573864,0.06,184.73,184.72,6.98064583]
[1755779574086,0.06,184.73,184.72,7.67064583]
[1755779574269,0.06,184.73,184.72,6.98064583]
[1755779574673,0.06,184.73,184.72,7.67064583]
[1755779575775,0.06,184.73,184.72,6.98064583]
[1755779576176,0.06,184.73,184.72,7.67064583]
[1755779578291,0.06,184.73,184.72,6.98064583]
[1755779578496,0.06,184.73,184.72,7.67064583]
[1755779579589,0.06,184.73,184.72,33.67064583]
[1755779579797,0.06,184.73,184.72,7.67064583]
[1755779580270,0.06,184.73,184.72,26.0]
[1755779581103,0.72,184.73,184.7,44.14]
[1755779581306,0.66,184.72,184.7,44.14]
[1755779581489,0.06,184.73,184.7,48.4208853]
[1755779581889,0.72,184.73,184.7,44.14]
[1755779582087,0.72,184.73,184.69,26.0]
[1755779582287,0.72,184.73,184.69,30.2808853]
[1755779582519,13.59559401,184.71,184.64,0.69]
[1755779582800,13.59559401,184.71,184.67,4.2808853]
[1755779583110,0.66,184.7,184.68,26.0]
[1755779583889,0.66,184.7,184.68,4.2808853]
[1755779584088,0.66,184.7,184.65,70.1]
[1755779584314,0.66,184.7,184.68,4.2808853]
[1755779584605,13.59559401,184.71,184.68,4.2808853]
[1755779584926,13.59559401,184.71,184.65,70.79]
[1755779584927,0.66,184.7,184.69,4.2808853]
[1755779585398,13.59559401,184.69,184.66,4.2808853]
[1755779585596,13.59559401,184.67,184.65,4.2808853]
[1755779585782,0.66,184.66,184.64,4.2808853]
[1755779585982,0.66,184.65,184.64,4.2808853]
[1755779586208,0.66,184.65,184.63,0.03]
[1755779586608,0.66,184.64,184.63,0.03]
[1755779586821,14.25559401,184.64,184.63,0.03]
[1755779588379,13.59559401,184.64,184.63,0.03]
[1755779588685,13.59559401,184.65,184.63,0.03]
[1755779589086,44.06,184.69,184.63,0.03]
[1755779589289,13.59559401,184.68,184.67,6.98441207]
[1755779589523,14.25559401,184.69,184.67,6.98441207]
[1755779589692,14.25559401,184.71,184.67,6.98441207]
[1755779589900,13.59559401,184.71,184.7,6.98441207]
[1755779590625,0.72,184.73,184.67,44.71]
[1755779590626,0.06,184.73,184.67,44.02]